[Event "December 12 Early 2023"]
[Site "https://www.chess.com"]
[Date "2023.12.12"]
[Round "4"]
[White "Senft, Sean"]
[Black "Semenova, Alina"]
[Result "1-0"]
[Board "176"]
[TimeControl "180+1"]
[WhiteFideId "2044960"]
[BlackFideId "24113875"]
[WhiteElo "2470"]
[BlackElo "2188"]
[WhiteTeam "USA"]
[BlackTeam "RUS"]
[WhiteClock "0:00:19"]
[BlackClock "0:00:04"]

1. d4 {[%clk 0:03:00]}  Nf6 {[%clk 0:02:54]} 2. c4 {[%clk 0:03:00]}  e6 {[%clk 0:02:54]} 3. Nc3 {[%clk 0:03:00]}  d5 {[%clk 0:02:53]} 4. cxd5 {[%clk 0:03:00]}  exd5 {[%clk 0:02:54]} 5. Bg5 {[%clk 0:03:01]}  Be7 {[%clk 0:02:54]} 6. e3 {[%clk 0:03:02]}  c6 {[%clk 0:02:54]} 7. Bd3 {[%clk 0:03:02]}  O-O {[%clk 0:02:54]} 8. Nf3 {[%clk 0:03:03]}  Nbd7 {[%clk 0:02:54]} 9. O-O {[%clk 0:03:04]}  a5 {[%clk 0:02:53]} 10. Qc2 {[%clk 0:03:04]}  h6 {[%clk 0:02:51]} 11. Bh4 {[%clk 0:03:05]}  Re8 {[%clk 0:02:45]} 12. Rae1 {[%clk 0:03:03]}  Ne4 {[%clk 0:02:34]} 13. Bxe7 {[%clk 0:03:03]}  Qxe7 {[%clk 0:02:35]} 14. Nd2 {[%clk 0:03:03]}  Nxd2 {[%clk 0:02:32]} 15. Qxd2 {[%clk 0:03:04]}  Nf6 {[%clk 0:02:32]} 16. f3 {[%clk 0:03:05]}  b6 {[%clk 0:02:27]} 17. e4 {[%clk 0:03:05]}  dxe4 {[%clk 0:02:26]} 18. fxe4 {[%clk 0:03:06]}  Ba6 {[%clk 0:02:25]} 19. Bxa6 {[%clk 0:03:03]}  Rxa6 {[%clk 0:02:26]} 20. e5 {[%clk 0:03:04]}  Nd5 {[%clk 0:02:26]} 21. Qf2 {[%clk 0:03:04]}  Rd8 {[%clk 0:02:20]} 22. Kh1 {[%clk 0:03:03]}  Ra7 {[%clk 0:02:19]} 23. h3 {[%clk 0:03:03]}  b5 {[%clk 0:02:14]} 24. Ne4 {[%clk 0:03:02]}  Nc7 {[%clk 0:01:58]} 25. Nd6 {[%clk 0:02:55]}  Ne8 {[%clk 0:01:56]} 26. Nf5 {[%clk 0:02:54]}  Qe6 {[%clk 0:01:55]} 27. Qg3 {[%clk 0:02:54]}  Rad7 {[%clk 0:01:47]} 28. Re4 {[%clk 0:02:55]}  Kh7 {[%clk 0:01:41]} 29. Rg4 {[%clk 0:02:55]}  g6 {[%clk 0:01:40]} 30. Nxh6 {[%clk 0:02:16]}  Kxh6 {[%clk 0:01:38]} 31. Rh4+ {[%clk 0:02:17]}  Kg7 {[%clk 0:01:38]} 32. Qf4 {[%clk 0:02:17]}  g5 {[%clk 0:01:25]} 33. Qxg5+ {[%clk 0:02:17]}  Qg6 {[%clk 0:01:25]} 34. Qe3 {[%clk 0:02:12]}  Kf8 {[%clk 0:01:20]} 35. Rg4 {[%clk 0:02:05]}  Qh7 {[%clk 0:01:13]} 36. Rgf4 {[%clk 0:02:00]}  Re7 {[%clk 0:01:02]} 37. Qf3 {[%clk 0:01:58]}  Rd5 {[%clk 0:00:49]} 38. Qg3 {[%clk 0:01:47]}  c5 {[%clk 0:00:29]} 39. Rh4 {[%clk 0:01:34]}  Qg7 {[%clk 0:00:28]} 40. Rg4 {[%clk 0:01:34]}  Qh7 {[%clk 0:00:28]} 41. dxc5 {[%clk 0:01:07]}  Rdxe5 {[%clk 0:00:25]} 42. Rff4 {[%clk 0:01:02]}  Ng7 {[%clk 0:00:15]} 43. Rh4 {[%clk 0:01:00]}  Rh5 {[%clk 0:00:15]} 44. Kh2 {[%clk 0:00:57]}  Nf5 {[%clk 0:00:08]} 45. Rxh5 {[%clk 0:00:40]}  Qxh5 {[%clk 0:00:09]} 46. Qf2 {[%clk 0:00:37]}  Ng7 {[%clk 0:00:03]} 47. c6 {[%clk 0:00:37]}  Ne6 {[%clk 0:00:03]} 48. Rf5 {[%clk 0:00:35]}  Qh8 {[%clk 0:00:02]} 49. Qb6 {[%clk 0:00:29]}  Qd4 {[%clk 0:00:02]} 50. Qb8+ {[%clk 0:00:29]}  Qd8 {[%clk 0:00:02]} 51. Qg3 {[%clk 0:00:26]}  Qc7 {[%clk 0:00:02]} 52. Rxb5 {[%clk 0:00:18]}  Qxg3+ {[%clk 0:00:02]} 53. Kxg3 {[%clk 0:00:19]}  Rc7 {[%clk 0:00:02]} 54. Rb6 {[%clk 0:00:18]}  Nd4 {[%clk 0:00:02]} 55. Ra6 {[%clk 0:00:18]}  Rxc6 {[%clk 0:00:02]} 56. Rxa5 {[%clk 0:00:19]}  Rc2 {[%clk 0:00:01]} 57. b4 {[%clk 0:00:19]}  Rb2 {[%clk 0:00:02]} 58. a3 {[%clk 0:00:19]}  Nc2 {[%clk 0:00:02]} 59. Ra8+ {[%clk 0:00:19]}  Kg7 {[%clk 0:00:02]} 60. Ra7 {[%clk 0:00:20]}  Rb3+ {[%clk 0:00:02]} 61. Kf4 {[%clk 0:00:20]}  Rxa3 {[%clk 0:00:03]} 62. Rxa3 {[%clk 0:00:21]}  Nxa3 {[%clk 0:00:04]} 63. Ke5 {[%clk 0:00:20]}  Kg6 {[%clk 0:00:03]} 64. g4 {[%clk 0:00:13]}  Kh6 {[%clk 0:00:01]} 65. Kf6 {[%clk 0:00:13]}  Nb5 {[%clk 0:00:01]} 66. Kxf7 {[%clk 0:00:14]}  Kg5 {[%clk 0:00:02]} 67. Ke6 {[%clk 0:00:14]}  Na3 {[%clk 0:00:02]} 68. Kd5 {[%clk 0:00:14]}  Nb5 {[%clk 0:00:02]} 69. Kc5 {[%clk 0:00:15]}  Nc7 {[%clk 0:00:03]} 70. b5 {[%clk 0:00:16]}  Ne6+ {[%clk 0:00:03]} 71. Kd6 {[%clk 0:00:16]}  Nd8 {[%clk 0:00:04]} 72. b6 {[%clk 0:00:16]}  Nb7+ {[%clk 0:00:04]} 73. Kc7 {[%clk 0:00:17]}  Nc5 {[%clk 0:00:05]} 74. b7 {[%clk 0:00:18]}  Kh4 {[%clk 0:00:05]} 75. b8=Q {[%clk 0:00:18]}  Na6+ {[%clk 0:00:05]} 76. Kb7 {[%clk 0:00:18]}  Nxb8 {[%clk 0:00:04]} 77. Kxb8 {[%clk 0:00:19]} 1-0

[Event "December 12 Early 2023"]
[Site "https://www.chess.com"]
[Date "2023.12.12"]
[Round "4"]
[White "Nikulina, Alena"]
[Black "Kotyk, Michael"]
[Result "0-1"]
[Board "178"]
[TimeControl "180+1"]
[WhiteFideId "4172051"]
[BlackFideId "16214501"]
[WhiteElo "2055"]
[BlackElo "2463"]
[WhiteTeam "RUS"]
[BlackTeam "GER"]
[WhiteClock "0:00:00"]
[BlackClock "0:00:15"]

1. e4 {[%clk 0:02:58]}  c5 {[%clk 0:02:38]} 2. Nf3 {[%clk 0:02:57]}  e6 {[%clk 0:02:38]} 3. d4 {[%clk 0:02:56]}  cxd4 {[%clk 0:02:39]} 4. Nxd4 {[%clk 0:02:56]}  Nc6 {[%clk 0:02:38]} 5. Nc3 {[%clk 0:02:55]}  Qc7 {[%clk 0:02:39]} 6. g3 {[%clk 0:02:26]}  a6 {[%clk 0:02:18]} 7. Bg2 {[%clk 0:02:22]}  Nf6 {[%clk 0:02:13]} 8. O-O {[%clk 0:02:07]}  Nxd4 {[%clk 0:02:12]} 9. Qxd4 {[%clk 0:02:06]}  Bc5 {[%clk 0:02:13]} 10. Qd3 {[%clk 0:02:03]}  Ng4 {[%clk 0:02:07]} 11. Bf4 {[%clk 0:01:51]}  Ne5 {[%clk 0:02:07]} 12. Qe2 {[%clk 0:01:41]}  b5 {[%clk 0:01:56]} 13. a3 {[%clk 0:01:37]}  Bb7 {[%clk 0:01:56]} 14. Rad1 {[%clk 0:01:31]}  d6 {[%clk 0:01:49]} 15. Kh1 {[%clk 0:01:27]}  O-O {[%clk 0:01:47]} 16. Be3 {[%clk 0:01:14]}  Bxe3 {[%clk 0:01:45]} 17. Qxe3 {[%clk 0:01:12]}  Nc4 {[%clk 0:01:45]} 18. Qc1 {[%clk 0:01:13]}  Rac8 {[%clk 0:01:46]} 19. f4 {[%clk 0:01:02]}  Nxa3 {[%clk 0:01:13]} 20. Rf2 {[%clk 0:00:45]}  Nc4 {[%clk 0:01:11]} 21. b3 {[%clk 0:00:37]}  Nb6 {[%clk 0:01:08]} 22. Na2 {[%clk 0:00:29]}  d5 {[%clk 0:01:08]} 23. e5 {[%clk 0:00:26]}  a5 {[%clk 0:01:07]} 24. Qe3 {[%clk 0:00:21]}  Qc5 {[%clk 0:01:02]} 25. Qe2 {[%clk 0:00:19]}  b4 {[%clk 0:01:01]} 26. Nc1 {[%clk 0:00:18]}  Rc7 {[%clk 0:00:46]} 27. Nd3 {[%clk 0:00:18]}  Qc3 {[%clk 0:00:46]} 28. f5 {[%clk 0:00:16]}  Bc6 {[%clk 0:00:44]} 29. f6 {[%clk 0:00:15]}  Nd7 {[%clk 0:00:26]} 30. Qg4 {[%clk 0:00:14]}  g6 {[%clk 0:00:20]} 31. Qg5 {[%clk 0:00:14]}  Kh8 {[%clk 0:00:14]} 32. Rf4 {[%clk 0:00:08]}  Rg8 {[%clk 0:00:13]} 33. Rh4 {[%clk 0:00:07]}  Nf8 {[%clk 0:00:14]} 34. Qh6 {[%clk 0:00:03]}  d4 {[%clk 0:00:14]} 35. Bxc6 {[%clk 0:00:01]}  Qxc6+ {[%clk 0:00:14]} 36. Kg1 {[%clk 0:00:02]}  Qxc2 {[%clk 0:00:14]} 37. Nf2 {[%clk 0:00:01]}  d3 {[%clk 0:00:14]} 38. Rd2 {[%clk 0:00:01]}  Qc1+ {[%clk 0:00:14]} 39. Kg2 {[%clk 0:00:00]}  Qc6+ {[%clk 0:00:15]} 0-1

[Event "December 12 Early 2023"]
[Site "https://www.chess.com"]
[Date "2023.12.12"]
[Round "4"]
[White "Liu, Casper"]
[Black "Tilahun , Abel Mathewos"]
[Result "1-0"]
[Board "181"]
[TimeControl "180+1"]
[WhiteFideId "1454153"]
[BlackFideId "15702391"]
[WhiteElo "2454"]
[BlackElo "2084"]
[WhiteTeam "DEN"]
[BlackTeam "ETH"]
[WhiteClock "0:00:27"]
[BlackClock "0:00:11"]

1. f4 {[%clk 0:02:56]}  d5 {[%clk 0:02:56]} 2. Nf3 {[%clk 0:02:57]}  Nf6 {[%clk 0:02:57]} 3. e3 {[%clk 0:02:57]}  Bf5 {[%clk 0:02:57]} 4. g3 {[%clk 0:02:57]}  e6 {[%clk 0:02:57]} 5. Bg2 {[%clk 0:02:58]}  Bd6 {[%clk 0:02:56]} 6. O-O {[%clk 0:02:58]}  O-O {[%clk 0:02:56]} 7. d3 {[%clk 0:02:59]}  c5 {[%clk 0:02:55]} 8. Nc3 {[%clk 0:02:58]}  Nc6 {[%clk 0:02:55]} 9. Qe1 {[%clk 0:02:54]}  Rc8 {[%clk 0:02:53]} 10. e4 {[%clk 0:02:54]}  d4 {[%clk 0:02:37]} 11. Nd1 {[%clk 0:02:50]}  Nb4 {[%clk 0:02:04]} 12. Qe2 {[%clk 0:02:43]}  c4 {[%clk 0:01:58]} 13. exf5 {[%clk 0:02:33]}  exf5 {[%clk 0:01:49]} 14. dxc4 {[%clk 0:02:11]}  Re8 {[%clk 0:01:45]} 15. Ne5 {[%clk 0:02:11]}  Bc5 {[%clk 0:01:34]} 16. Kh1 {[%clk 0:02:08]}  Ng4 {[%clk 0:01:28]} 17. h3 {[%clk 0:02:08]}  Ne3 {[%clk 0:01:18]} 18. Nxe3 {[%clk 0:02:01]}  dxe3 {[%clk 0:01:19]} 19. a3 {[%clk 0:02:01]}  Nc6 {[%clk 0:00:52]} 20. Rd1 {[%clk 0:01:03]}  Qf6 {[%clk 0:00:37]} 21. Bxc6 {[%clk 0:00:32]}  bxc6 {[%clk 0:00:32]} 22. Bxe3 {[%clk 0:00:33]}  Bd6 {[%clk 0:00:21]} 23. Bd4 {[%clk 0:00:29]}  c5 {[%clk 0:00:20]} 24. Bc3 {[%clk 0:00:29]}  Qh6 {[%clk 0:00:19]} 25. Qg2 {[%clk 0:00:26]}  f6 {[%clk 0:00:18]} 26. Qd5+ {[%clk 0:00:26]}  Kh8 {[%clk 0:00:12]} 27. Nf7+ {[%clk 0:00:25]}  Kg8 {[%clk 0:00:12]} 28. Nxh6+ {[%clk 0:00:26]}  Kh8 {[%clk 0:00:11]} 29. Qg8+ {[%clk 0:00:26]}  Rxg8 {[%clk 0:00:11]} 30. Nf7# {[%clk 0:00:27]} 1-0

[Event "December 12 Early 2023"]
[Site "https://www.chess.com"]
[Date "2023.12.12"]
[Round "4"]
[White "Reinecke, Katharina"]
[Black "Khromkin, Andrey"]
[Result "0-1"]
[Board "182"]
[TimeControl "180+1"]
[WhiteFideId "12929727"]
[BlackFideId "4154126"]
[WhiteElo "2020"]
[BlackElo "2447"]
[WhiteTeam "GER"]
[BlackTeam "RUS"]
[WhiteClock "0:00:00"]
[BlackClock "0:00:43"]

1. d4 {[%clk 0:03:00]}  d5 {[%clk 0:02:59]} 2. c4 {[%clk 0:02:56]}  dxc4 {[%clk 0:03:00]} 3. e3 {[%clk 0:02:54]}  e5 {[%clk 0:02:59]} 4. Bxc4 {[%clk 0:02:52]}  exd4 {[%clk 0:03:00]} 5. exd4 {[%clk 0:02:52]}  Bd6 {[%clk 0:02:58]} 6. Nf3 {[%clk 0:02:49]}  Nf6 {[%clk 0:02:58]} 7. O-O {[%clk 0:02:48]}  O-O {[%clk 0:02:58]} 8. Nc3 {[%clk 0:02:47]}  Nc6 {[%clk 0:02:57]} 9. a3 {[%clk 0:02:37]}  Bg4 {[%clk 0:02:54]} 10. Be3 {[%clk 0:02:14]}  Qd7 {[%clk 0:02:46]} 11. b4 {[%clk 0:02:04]}  a6 {[%clk 0:02:45]} 12. b5 {[%clk 0:01:53]}  axb5 {[%clk 0:02:42]} 13. Nxb5 {[%clk 0:01:52]}  Rad8 {[%clk 0:02:26]} 14. h3 {[%clk 0:01:34]}  Bh5 {[%clk 0:02:25]} 15. d5 {[%clk 0:01:10]}  Ne5 {[%clk 0:02:05]} 16. Nxe5 {[%clk 0:00:57]}  Bxe5 {[%clk 0:02:02]} 17. Qb3 {[%clk 0:00:24]}  Bxa1 {[%clk 0:01:59]} 18. Rxa1 {[%clk 0:00:23]}  Nxd5 {[%clk 0:01:56]} 19. a4 {[%clk 0:00:19]}  c6 {[%clk 0:01:46]} 20. Nd4 {[%clk 0:00:18]}  Nxe3 {[%clk 0:01:44]} 21. fxe3 {[%clk 0:00:17]}  Rfe8 {[%clk 0:01:33]} 22. Rf1 {[%clk 0:00:17]}  Rxe3 {[%clk 0:01:19]} 23. Qxe3 {[%clk 0:00:15]}  Qxd4 {[%clk 0:01:18]} 24. Qxd4 {[%clk 0:00:15]}  Rxd4 {[%clk 0:01:17]} 25. Bb3 {[%clk 0:00:14]}  Kf8 {[%clk 0:01:12]} 26. g4 {[%clk 0:00:11]}  Bg6 {[%clk 0:01:11]} 27. Kg2 {[%clk 0:00:10]}  Rb4 {[%clk 0:01:09]} 28. Bd1 {[%clk 0:00:09]}  Be4+ {[%clk 0:01:06]} 29. Kg3 {[%clk 0:00:09]}  Bd5 {[%clk 0:01:03]} 30. Re1 {[%clk 0:00:08]}  Bb3 {[%clk 0:00:59]} 31. Bxb3 {[%clk 0:00:07]}  Rxb3+ {[%clk 0:00:59]} 32. Kg2 {[%clk 0:00:05]}  Rb4 {[%clk 0:00:56]} 33. Ra1 {[%clk 0:00:05]}  c5 {[%clk 0:00:56]} 34. a5 {[%clk 0:00:05]}  c4 {[%clk 0:00:47]} 35. a6 {[%clk 0:00:05]}  bxa6 {[%clk 0:00:47]} 36. Rxa6 {[%clk 0:00:06]}  Rb1 {[%clk 0:00:44]} 37. Rc6 {[%clk 0:00:05]}  Rc1 {[%clk 0:00:44]} 38. Kg3 {[%clk 0:00:03]}  c3 {[%clk 0:00:44]} 39. Kf2 {[%clk 0:00:03]}  c2 {[%clk 0:00:44]} 40. h4 {[%clk 0:00:00]}  Rh1 {[%clk 0:00:43]} 0-1

[Event "December 12 Early 2023"]
[Site "https://www.chess.com"]
[Date "2023.12.12"]
[Round "4"]
[White "Horcajuelo Rocamora, Martin"]
[Black "Thake, Conrad"]
[Result "1-0"]
[Board "183"]
[TimeControl "180+1"]
[WhiteFideId "24573027"]
[BlackFideId "5602947"]
[WhiteElo "2445"]
[BlackElo "1966"]
[WhiteTeam "ESP"]
[BlackTeam "MLT"]
[WhiteClock "0:02:03"]
[BlackClock "0:00:51"]

1. e4 {[%clk 0:03:00]}  c5 {[%clk 0:02:59]} 2. Nf3 {[%clk 0:03:00]}  Nc6 {[%clk 0:02:59]} 3. d4 {[%clk 0:02:59]}  cxd4 {[%clk 0:02:59]} 4. Nxd4 {[%clk 0:03:00]}  Nf6 {[%clk 0:02:59]} 5. Nc3 {[%clk 0:03:00]}  e5 {[%clk 0:02:59]} 6. Ndb5 {[%clk 0:03:01]}  d6 {[%clk 0:02:59]} 7. Bg5 {[%clk 0:03:01]}  a6 {[%clk 0:02:59]} 8. Na3 {[%clk 0:03:01]}  b5 {[%clk 0:02:59]} 9. Nd5 {[%clk 0:03:01]}  Be7 {[%clk 0:02:59]} 10. Bxf6 {[%clk 0:03:02]}  Bxf6 {[%clk 0:02:59]} 11. c3 {[%clk 0:03:02]}  O-O {[%clk 0:02:57]} 12. Nc2 {[%clk 0:03:03]}  Bg5 {[%clk 0:02:57]} 13. a4 {[%clk 0:03:03]}  Rb8 {[%clk 0:02:55]} 14. axb5 {[%clk 0:03:01]}  axb5 {[%clk 0:02:52]} 15. h4 {[%clk 0:03:01]}  Bh6 {[%clk 0:02:50]} 16. g4 {[%clk 0:03:01]}  Bf4 {[%clk 0:02:35]} 17. Qf3 {[%clk 0:02:58]}  g5 {[%clk 0:02:12]} 18. hxg5 {[%clk 0:02:46]}  Qxg5 {[%clk 0:02:10]} 19. Qh3 {[%clk 0:02:46]}  h6 {[%clk 0:02:07]} 20. Be2 {[%clk 0:02:43]}  Kg7 {[%clk 0:02:00]} 21. Rd1 {[%clk 0:02:38]}  Rh8 {[%clk 0:01:51]} 22. Nxf4 {[%clk 0:02:26]}  exf4 {[%clk 0:01:47]} 23. Rxd6 {[%clk 0:02:25]}  Ne5 {[%clk 0:01:41]} 24. f3 {[%clk 0:02:25]}  Be6 {[%clk 0:01:35]} 25. Qh4 {[%clk 0:02:22]}  Qg6 {[%clk 0:01:20]} 26. Nd4 {[%clk 0:02:18]}  Ra8 {[%clk 0:01:14]} 27. Kf2 {[%clk 0:02:10]}  Ra2 {[%clk 0:01:13]} 28. Nf5+ {[%clk 0:02:04]}  Kg8 {[%clk 0:00:51]} 29. Ne7+ {[%clk 0:02:03]} 1-0

[Event "December 12 Early 2023"]
[Site "https://www.chess.com"]
[Date "2023.12.12"]
[Round "4"]
[White "Santos, Isaque Goncalves"]
[Black "Munoz Sanchez, Miguel"]
[Result "0-1"]
[Board "184"]
[TimeControl "180+1"]
[WhiteFideId "2103885"]
[BlackFideId "3600734"]
[WhiteElo "1842"]
[BlackElo "2336"]
[WhiteTeam "BRA"]
[BlackTeam "ECU"]
[WhiteClock "0:00:01"]
[BlackClock "0:00:12"]

1. d4 {[%clk 0:02:56]}  Nf6 {[%clk 0:02:57]} 2. c4 {[%clk 0:02:56]}  g6 {[%clk 0:02:58]} 3. Nc3 {[%clk 0:02:56]}  Bg7 {[%clk 0:02:58]} 4. e4 {[%clk 0:02:56]}  d6 {[%clk 0:02:59]} 5. Nge2 {[%clk 0:02:55]}  O-O {[%clk 0:02:58]} 6. Ng3 {[%clk 0:02:55]}  c5 {[%clk 0:02:58]} 7. d5 {[%clk 0:02:55]}  e6 {[%clk 0:02:56]} 8. Be2 {[%clk 0:02:49]}  exd5 {[%clk 0:02:56]} 9. cxd5 {[%clk 0:02:49]}  a6 {[%clk 0:02:49]} 10. a4 {[%clk 0:02:48]}  Nbd7 {[%clk 0:02:14]} 11. O-O {[%clk 0:02:46]}  Re8 {[%clk 0:02:13]} 12. Bf4 {[%clk 0:02:38]}  Ne5 {[%clk 0:02:13]} 13. a5 {[%clk 0:02:28]}  b5 {[%clk 0:02:10]} 14. axb6 {[%clk 0:02:23]}  Qxb6 {[%clk 0:02:10]} 15. Na4 {[%clk 0:02:19]}  Qc7 {[%clk 0:02:04]} 16. Rc1 {[%clk 0:02:11]}  Bd7 {[%clk 0:02:01]} 17. b4 {[%clk 0:02:08]}  Bxa4 {[%clk 0:01:52]} 18. Qxa4 {[%clk 0:02:07]}  Nfd7 {[%clk 0:01:50]} 19. bxc5 {[%clk 0:01:53]}  Nxc5 {[%clk 0:01:49]} 20. Qa3 {[%clk 0:01:45]}  Qd7 {[%clk 0:01:36]} 21. Qa5 {[%clk 0:01:26]}  h5 {[%clk 0:01:33]} 22. f3 {[%clk 0:01:02]}  Ned3 {[%clk 0:01:31]} 23. Bxd3 {[%clk 0:00:53]}  Nxd3 {[%clk 0:01:30]} 24. Rc7 {[%clk 0:00:52]}  Qd8 {[%clk 0:01:24]} 25. Be3 {[%clk 0:00:50]}  Re7 {[%clk 0:01:10]} 26. Bb6 {[%clk 0:00:43]}  Bd4+ {[%clk 0:01:04]} 27. Bxd4 {[%clk 0:00:43]}  Qxc7 {[%clk 0:01:03]} 28. Qa1 {[%clk 0:00:39]}  Rb8 {[%clk 0:00:55]} 29. Bh8 {[%clk 0:00:36]}  Qc5+ {[%clk 0:00:47]} 30. Kh1 {[%clk 0:00:36]}  Ne5 {[%clk 0:00:35]} 31. Bf6 {[%clk 0:00:33]}  Reb7 {[%clk 0:00:32]} 32. f4 {[%clk 0:00:32]}  Ng4 {[%clk 0:00:24]} 33. Bd4 {[%clk 0:00:27]}  Qc4 {[%clk 0:00:17]} 34. h3 {[%clk 0:00:27]}  Rb4 {[%clk 0:00:12]} 35. Bh8 {[%clk 0:00:26]}  Ne5 {[%clk 0:00:11]} 36. Bxe5 {[%clk 0:00:24]}  dxe5 {[%clk 0:00:10]} 37. Qxe5 {[%clk 0:00:24]}  Qd4 {[%clk 0:00:10]} 38. Qxd4 {[%clk 0:00:24]}  Rxd4 {[%clk 0:00:11]} 39. Rc1 {[%clk 0:00:20]}  Rdb4 {[%clk 0:00:10]} 40. d6 {[%clk 0:00:20]}  Rb1 {[%clk 0:00:10]} 41. Rxb1 {[%clk 0:00:19]}  Rxb1+ {[%clk 0:00:11]} 42. Kh2 {[%clk 0:00:19]}  Rd1 {[%clk 0:00:12]} 43. e5 {[%clk 0:00:19]}  Kf8 {[%clk 0:00:12]} 44. Ne4 {[%clk 0:00:20]}  Ke8 {[%clk 0:00:12]} 45. d7+ {[%clk 0:00:18]}  Kxd7 {[%clk 0:00:10]} 46. Nc5+ {[%clk 0:00:19]}  Kc6 {[%clk 0:00:11]} 47. Nxa6 {[%clk 0:00:20]}  Rb1 {[%clk 0:00:10]} 48. g4 {[%clk 0:00:18]}  Rb6 {[%clk 0:00:10]} 49. gxh5 {[%clk 0:00:17]}  gxh5 {[%clk 0:00:10]} 50. Kg3 {[%clk 0:00:17]}  Rxa6 {[%clk 0:00:10]} 51. Kh4 {[%clk 0:00:18]}  Kd5 {[%clk 0:00:10]} 52. Kxh5 {[%clk 0:00:18]}  Ke6 {[%clk 0:00:10]} 53. Kg5 {[%clk 0:00:19]}  Ra3 {[%clk 0:00:10]} 54. h4 {[%clk 0:00:18]}  Rg3+ {[%clk 0:00:09]} 55. Kh5 {[%clk 0:00:17]}  Kf5 {[%clk 0:00:10]} 56. Kh6 {[%clk 0:00:17]}  Kxf4 {[%clk 0:00:10]} 57. e6 {[%clk 0:00:17]}  fxe6 {[%clk 0:00:10]} 58. h5 {[%clk 0:00:18]}  e5 {[%clk 0:00:10]} 59. Kh7 {[%clk 0:00:17]}  e4 {[%clk 0:00:11]} 60. Kh8 {[%clk 0:00:17]}  e3 {[%clk 0:00:11]} 61. h6 {[%clk 0:00:17]}  e2 {[%clk 0:00:12]} 62. h7 {[%clk 0:00:18]}  Rh3 {[%clk 0:00:11]} 63. Kg7 {[%clk 0:00:17]}  Rxh7+ {[%clk 0:00:12]} 64. Kg8 {[%clk 0:00:17]}  e1=Q {[%clk 0:00:12]} 65. Kf8 {[%clk 0:00:01]}  Qe7+ {[%clk 0:00:12]} 0-1

[Event "December 12 Early 2023"]
[Site "https://www.chess.com"]
[Date "2023.12.12"]
[Round "4"]
[White "Chlpik, Martin"]
[Black "Kotlyar, Kirill"]
[Result "1-0"]
[Board "186"]
[TimeControl "180+1"]
[WhiteFideId "14923351"]
[BlackFideId "24145599"]
[WhiteElo "2325"]
[BlackElo "2569"]
[WhiteTeam "SVK"]
[BlackTeam "RUS"]
[WhiteClock "0:00:11"]
[BlackClock "0:00:23"]

1. d4 {[%clk 0:03:00]}  Nf6 {[%clk 0:02:52]} 2. c4 {[%clk 0:03:00]}  g6 {[%clk 0:02:51]} 3. g3 {[%clk 0:03:00]}  Bg7 {[%clk 0:02:51]} 4. Bg2 {[%clk 0:03:01]}  O-O {[%clk 0:02:48]} 5. e3 {[%clk 0:03:01]}  c6 {[%clk 0:02:47]} 6. Ne2 {[%clk 0:03:01]}  d5 {[%clk 0:02:48]} 7. Nd2 {[%clk 0:03:01]}  Nbd7 {[%clk 0:02:43]} 8. O-O {[%clk 0:03:01]}  Nb6 {[%clk 0:02:43]} 9. c5 {[%clk 0:03:01]}  Nbd7 {[%clk 0:02:43]} 10. b4 {[%clk 0:03:01]}  e5 {[%clk 0:02:41]} 11. Bb2 {[%clk 0:03:01]}  e4 {[%clk 0:02:42]} 12. a4 {[%clk 0:02:59]}  Qc7 {[%clk 0:02:34]} 13. b5 {[%clk 0:02:59]}  Nh5 {[%clk 0:02:24]} 14. a5 {[%clk 0:02:49]}  f5 {[%clk 0:02:24]} 15. a6 {[%clk 0:02:46]}  cxb5 {[%clk 0:02:19]} 16. Nc3 {[%clk 0:02:43]}  Qc6 {[%clk 0:02:06]} 17. Qb3 {[%clk 0:02:41]}  Nhf6 {[%clk 0:01:53]} 18. f3 {[%clk 0:02:23]}  Kh8 {[%clk 0:01:43]} 19. fxe4 {[%clk 0:02:23]}  fxe4 {[%clk 0:01:44]} 20. Qxb5 {[%clk 0:02:03]}  Ng4 {[%clk 0:01:23]} 21. Rxf8+ {[%clk 0:01:57]}  Nxf8 {[%clk 0:01:24]} 22. Ndxe4 {[%clk 0:01:14]}  Nxe3 {[%clk 0:01:10]} 23. Nd6 {[%clk 0:01:02]}  Qxb5 {[%clk 0:00:59]} 24. Ncxb5 {[%clk 0:00:37]}  bxa6 {[%clk 0:00:59]} 25. Nc7 {[%clk 0:00:34]}  Rb8 {[%clk 0:00:59]} 26. Nxd5 {[%clk 0:00:22]}  Nxg2 {[%clk 0:00:40]} 27. Nxc8 {[%clk 0:00:22]}  Rxb2 {[%clk 0:00:37]} 28. Rd1 {[%clk 0:00:12]}  Nd7 {[%clk 0:00:26]} 29. Nd6 {[%clk 0:00:12]}  a5 {[%clk 0:00:26]} 30. Ne7 {[%clk 0:00:11]}  Ne3 {[%clk 0:00:23]} 31. Nf7# {[%clk 0:00:11]} 1-0

[Event "December 12 Early 2023"]
[Site "https://www.chess.com"]
[Date "2023.12.12"]
[Round "4"]
[White "Aalto, Patrik"]
[Black "IranianCheetah"]
[Result "0-1"]
[Board "188"]
[TimeControl "180+1"]
[WhiteFideId "510726"]
[WhiteElo "2459"]
[BlackElo "2319"]
[WhiteTeam "FIN"]
[WhiteClock "0:00:00"]
[BlackClock "0:00:01"]

1. Nf3 {[%clk 0:03:00]}  Nf6 {[%clk 0:02:59]} 2. c4 {[%clk 0:03:00]}  g6 {[%clk 0:02:55]} 3. Nc3 {[%clk 0:02:57]}  Bg7 {[%clk 0:02:55]} 4. d4 {[%clk 0:02:56]}  O-O {[%clk 0:02:54]} 5. e4 {[%clk 0:02:57]}  d6 {[%clk 0:02:55]} 6. Be2 {[%clk 0:02:56]}  Nbd7 {[%clk 0:02:55]} 7. h3 {[%clk 0:02:51]}  e5 {[%clk 0:02:54]} 8. Be3 {[%clk 0:02:52]}  Re8 {[%clk 0:02:54]} 9. d5 {[%clk 0:02:49]}  a5 {[%clk 0:02:54]} 10. g4 {[%clk 0:02:45]}  Nc5 {[%clk 0:02:54]} 11. Qc2 {[%clk 0:02:44]}  b6 {[%clk 0:02:51]} 12. Nd2 {[%clk 0:02:35]}  Rf8 {[%clk 0:02:31]} 13. f3 {[%clk 0:02:33]}  Ne8 {[%clk 0:02:23]} 14. h4 {[%clk 0:02:28]}  f5 {[%clk 0:02:22]} 15. gxf5 {[%clk 0:02:29]}  gxf5 {[%clk 0:02:22]} 16. Bg5 {[%clk 0:02:28]}  Qd7 {[%clk 0:02:12]} 17. O-O-O {[%clk 0:02:26]}  Kh8 {[%clk 0:02:02]} 18. h5 {[%clk 0:01:05]}  h6 {[%clk 0:01:58]} 19. Bh4 {[%clk 0:01:06]}  Bf6 {[%clk 0:01:55]} 20. Rdg1 {[%clk 0:01:05]}  Rg8 {[%clk 0:01:37]} 21. Rxg8+ {[%clk 0:01:04]}  Kxg8 {[%clk 0:01:38]} 22. Rg1+ {[%clk 0:01:04]}  Kh7 {[%clk 0:01:36]} 23. Bf2 {[%clk 0:00:56]}  Bg5 {[%clk 0:01:31]} 24. exf5 {[%clk 0:00:46]}  Qxf5 {[%clk 0:01:29]} 25. Bxc5 {[%clk 0:00:43]}  Qxc2+ {[%clk 0:01:26]} 26. Kxc2 {[%clk 0:00:42]}  bxc5 {[%clk 0:01:17]} 27. Nde4 {[%clk 0:00:42]}  Nf6 {[%clk 0:01:06]} 28. Nxg5+ {[%clk 0:00:41]}  hxg5 {[%clk 0:01:05]} 29. Rxg5 {[%clk 0:00:42]}  Bd7 {[%clk 0:00:56]} 30. Bd3+ {[%clk 0:00:42]}  Kh8 {[%clk 0:00:48]} 31. Bf5 {[%clk 0:00:40]}  Be8 {[%clk 0:00:40]} 32. h6 {[%clk 0:00:39]}  a4 {[%clk 0:00:22]} 33. Rg7 {[%clk 0:00:38]}  a3 {[%clk 0:00:21]} 34. Rxc7 {[%clk 0:00:34]}  axb2 {[%clk 0:00:20]} 35. Kxb2 {[%clk 0:00:35]}  Rb8+ {[%clk 0:00:15]} 36. Kc2 {[%clk 0:00:35]}  Ra8 {[%clk 0:00:12]} 37. Rb7 {[%clk 0:00:35]}  Rd8 {[%clk 0:00:10]} 38. a4 {[%clk 0:00:33]}  Ra8 {[%clk 0:00:10]} 39. Kb3 {[%clk 0:00:34]}  Bh5 {[%clk 0:00:09]} 40. Rb6 {[%clk 0:00:31]}  Bxf3 {[%clk 0:00:08]} 41. Rxd6 {[%clk 0:00:31]}  Ne8 {[%clk 0:00:04]} 42. Re6 {[%clk 0:00:29]}  Rb8+ {[%clk 0:00:03]} 43. Nb5 {[%clk 0:00:29]}  Nc7 {[%clk 0:00:03]} 44. Rxe5 {[%clk 0:00:29]}  Na6 {[%clk 0:00:02]} 45. d6 {[%clk 0:00:27]}  Nb4 {[%clk 0:00:02]} 46. d7 {[%clk 0:00:26]}  Bc6 {[%clk 0:00:02]} 47. Re7 {[%clk 0:00:19]}  Rd8 {[%clk 0:00:02]} 48. h7 {[%clk 0:00:00]}  Na6 {[%clk 0:00:01]} 0-1